Workbook

Sheet ورقة1
C5: الفرع | D5: المبيعات الفعلية | E5: الموازنة التقديرية | F5: النسبة
C6: فرع 1 | D6: 10000 | E6: =D6+450 -> 10450 | F6: =D6/E6 -> 0.956937799
C7: فرع 2 | D7: 15000 | E7: =D7+450 -> 15450 | F7: =D7/E7 -> 0.9708737864
C8: فرع 3 | D8: 52000 | E8: 52450 | F8: 0.9914204004
C9: فرع 4 | D9: 154200 | E9: =D9+450 -> 154650 | F9: 0.9970902037
C10: فرع 5 | D10: =D6+500 -> 10500 | E10: =D10+450 -> 10950 | F10: 0.9589041096
C11: فرع 6 | D11: =D7+500 -> 15500 | E11: =D11+450 -> 15950 | F11: 0.9717868339
C12: فرع 7 | D12: 52500 | E12: 52950 | F12: 0.9915014164
C13: فرع 8 | D13: =D9+500 -> 154700 | E13: 155150 | F13: 0.9970995811
C14: فرع 9 | D14: 11000 | E14: 11450 | F14: 0.96069869
C15: فرع 10 | D15: 16000 | E15: 16450 | F15: 0.9726443769
